bitfinex/quotes_SOLUSD_20250204
["timestamp","ask_amount","ask_price","bid_price","bid_amount"]
[1738630984669,20.0,215.97,215.82,18.04524853]
[1738630985163,20.0,215.97,215.81,13.41184853]
[1738630985372,1.7093,215.92,215.78,81.8]
[1738630986043,1.7093,215.92,215.71,86.4357]
[1738630986044,20.0,215.88,215.71,86.4357]
[1738630986356,1.7093,215.86,215.83,0.0022]
[1738630986651,7.1994,215.85,215.68,20.0]
[1738630987024,7.1994,215.85,215.68,0.69511464]
[1738630987537,7.1994,215.85,215.71,18.04764853]
[1738630987750,7.1994,215.85,215.75,13.41184853]
[1738630988269,7.1994,215.85,215.78,20.0]
[1738630991081,1.7093,215.86,215.78,24.6341]
[1738630991775,1.7093,215.86,215.82,20.0]
[1738630991984,7.0544,215.9,215.82,20.0]
[1738630992869,7.0544,215.9,215.82,24.6334]
[1738630994848,1.7225,215.91,215.83,18.04484853]
[1738630996776,1.7225,215.91,215.82,0.063]
[1738630997379,1.7225,215.91,215.82,18.10824853]
[1738630997766,7.0544,215.95,215.83,0.69465406]
[1738630997971,7.0544,215.95,215.87,20.0]
[1738630998168,7.0544,215.95,215.88,13.41184853]
[1738630998858,7.0544,215.95,215.88,18.04384853]
[1738630999880,7.0544,215.95,215.85,20.0]
[1738631000173,7.0544,215.95,215.89,20.0]
[1738631000378,7.0544,215.95,215.82,0.063]
[1738631001162,7.0544,215.95,215.84,20.0]
[1738631002086,1.0,215.94,215.82,0.063]
[1738631002271,1.0,215.91,215.82,0.063]
[1738631002480,1.7271,215.9,215.82,0.063]
[1738631003263,6.8929,215.89,215.82,0.063]
[1738631006169,20.0,215.85,215.82,0.063]
[1738631006371,7.8063,215.84,215.69,86.4361]
[1738631006686,1.8129,215.83,215.68,13.41184853]
[1738631006876,20.0,215.81,215.66,4.6367]
[1738631007363,20.0,215.81,215.67,20.0]
[1738631007761,1.8129,215.83,215.71,20.0]
[1738631007960,1.8129,215.83,215.72,13.41184853]
[1738631008183,1.8129,215.83,215.75,20.0]
[1738631008776,1.8129,215.83,215.76,4.6347]
[1738631009088,1.8129,215.83,215.75,20.0]
[1738631009464,1.8129,215.83,215.75,24.6349]
[1738631012593,1.8129,215.83,215.75,20.0]
[1738631012901,1.8129,215.83,215.71,4.6356]
[1738631013401,1.8129,215.83,215.73,13.41184853]
[1738631013775,1.8129,215.83,215.76,20.0]
[1738631014705,1.8129,215.83,215.76,24.6346]
[1738631016490,8.4472,215.92,215.77,18.04624853]
[1738631016676,8.4472,215.92,215.78,0.69488868]
[1738631016879,8.4472,215.92,215.81,13.41184853]
[1738631017580,8.4472,215.92,215.83,13.41184853]
[1738631018682,8.4472,215.92,215.83,18.04494853]
[1738631020708,1.6899,215.92,215.83,18.04494853]
[1738631021093,1.6899,215.92,215.83,18.7396533]
[1738631021312,1.6899,215.92,215.83,18.04494853]
[1738631022008,1.8094,215.97,215.9,20.0]
[1738631022312,1.8094,215.97,215.91,13.41184853]
[1738631023013,1.8094,216.03,215.91,13.41184853]
[1738631023513,1.8094,216.03,215.93,13.41184853]
[1738631023715,1.8094,216.03,215.96,20.0]
[1738631024216,1.8094,216.03,215.97,13.41184853]
[1738631024389,0.063,216.09,215.99,33.41184853]
[1738631024712,1.8094,216.08,215.99,33.41184853]
[1738631026521,20.0,216.06,215.93,81.8]
[1738631026814,13.44184853,216.05,215.88,4.632]
[1738631027001,7.0014,215.99,215.88,4.632]
[1738631027206,7.0014,215.99,215.86,4.6324]
[1738631027611,7.0014,215.99,215.89,13.41184853]
[1738631028316,7.0014,215.99,215.88,13.41184853]
[1738631028521,7.0014,215.99,215.88,18.04384853]
[1738631028722,7.0014,215.99,215.91,20.0]
[1738631029108,7.0014,215.99,215.92,13.41184853]
[1738631029299,6.8336,216.04,215.96,13.41184853]
[1738631029501,0.03,216.05,215.98,13.41184853]
[1738631029720,0.03,216.05,215.99,0.69421527]
[1738631030424,0.03,216.05,215.92,33.41184853]
[1738631030629,0.03,216.05,215.98,13.41184853]
[1738631030835,0.03,216.05,215.97,20.0]
[1738631032509,0.03,216.05,215.92,4.6311]
[1738631032923,0.03,216.05,215.93,13.41184853]
[1738631033530,0.03,216.05,215.92,20.0]
[1738631034223,7.1153,215.99,215.89,81.8]
[1738631034626,7.1153,215.99,215.92,20.0]
[1738631035220,7.1153,215.99,215.83,83.4615]
[1738631035221,1.6593,215.98,215.83,83.4615]
[1738631035542,1.6593,215.98,215.83,81.8]
[1738631036436,1.6593,215.98,215.86,20.0]
[1738631036607,1.6593,215.98,215.87,20.0]
[1738631037037,1.6593,215.98,215.88,13.41184853]
[1738631037641,1.6593,215.98,215.91,20.0]
[1738631037932,1.6593,215.98,215.92,13.41184853]
[1738631038102,7.1153,215.99,215.95,20.0]
[1738631040334,7.1153,215.99,215.87,0.6944087]
[1738631040648,7.1153,215.99,215.86,86.4326]
[1738631040813,7.1153,215.99,215.89,20.0]
[1738631041639,7.1153,215.99,215.87,18.04424853]
[1738631042247,7.1153,215.99,215.9,20.0]
[1738631042538,7.1153,215.99,215.87,13.41184853]
[1738631042740,7.1153,215.99,215.86,86.4326]
[1738631043037,1.655,215.98,215.86,81.8]
[1738631043237,20.0,215.96,215.82,0.063]
[1738631043624,20.0,215.96,215.83,20.0]
[1738631043930,8.6582,215.93,215.82,0.063]
[1738631044821,8.6582,215.93,215.83,20.0]
[1738631045211,8.6582,215.93,215.84,13.41184853]
[1738631045437,8.6582,215.93,215.82,4.6963]
[1738631045438,8.6582,215.93,215.82,0.063]
[1738631046622,1.0,215.92,215.82,0.063]
[1738631046819,1.6546,215.89,215.82,0.063]
[1738631047033,7.0645,215.88,215.82,0.063]
[1738631048013,7.0645,215.88,215.82,0.75802176]
[1738631048342,7.0645,215.88,215.82,0.063]
[1738631049140,1.6546,215.89,215.83,20.0]
[1738631049647,1.6546,215.89,215.84,13.41184853]
[1738631050060,7.2793,215.93,215.84,13.41184853]
[1738631050354,1.7527,215.94,215.88,13.41184853]
[1738631051046,1.7527,215.94,215.89,4.6319]
[1738631051833,1.7527,215.94,215.88,13.41184853]
[1738631052044,1.7527,215.94,215.84,11.5826]
[1738631052045,1.7527,215.94,215.84,4.633]
[1738631052855,1.7527,215.94,215.86,20.0]
[1738631053073,1.7527,215.94,215.87,20.0]
[1738631053737,1.7527,215.94,215.88,13.41184853]
[1738631053970,1.7527,215.94,215.88,33.41184853]
[1738631054562,1.7527,215.94,215.88,20.0]
[1738631055327,1.7527,215.94,215.86,4.6324]
[1738631056877,1.7527,215.94,215.84,13.41184853]
[1738631057196,1.7527,215.94,215.83,4.6332]
[1738631057397,26.2431,215.93,215.79,81.8]
[1738631057600,26.2431,215.93,215.73,83.4437]
[1738631057769,6.4603,215.88,215.73,81.8]
[1738631057968,1.5338,215.87,215.73,81.8]
[1738631058166,1.5338,215.87,215.71,4.6357]
[1738631058495,20.0,215.85,215.72,18.04734853]
[1738631058862,20.0,215.85,215.72,24.6355]
[1738631059087,1.5338,215.87,215.73,20.0]
[1738631059291,1.5338,215.87,215.74,13.41184853]
[1738631059664,1.5338,215.87,215.75,4.6349]
[1738631059985,1.5338,215.87,215.74,18.04694853]
[1738631060170,1.5338,215.87,215.69,84.11243676]
[1738631060490,1.5338,215.87,215.73,13.41184853]
[1738631061797,1.5338,215.87,215.73,18.04724853]
[1738631062391,1.5338,215.87,215.73,13.41184853]
[1738631062592,20.0,215.85,215.73,13.41184853]
[1738631062959,1.5338,215.87,215.73,18.04714853]
[1738631063701,1.5338,215.87,215.77,13.41184853]
[1738631063994,1.5338,215.87,215.73,18.04714853]
[1738631063995,1.5338,215.87,215.81,13.41184853]
[1738631064177,1.5971,215.92,215.81,13.41184853]
[1738631065310,1.5971,215.92,215.81,18.04544853]
[1738631067000,1.5971,215.92,215.81,13.41184853]
[1738631068109,1.5971,215.92,215.81,18.04544853]
[1738631069192,1.5971,215.92,215.78,81.8]
[1738631069792,21.0,215.9,215.78,81.8]
[1738631070124,21.0,215.9,215.63,4.6375]
[1738631070125,21.5453,215.81,215.63,4.6375]
[1738631070586,13.41184853,215.8,215.63,4.6375]
[1738631070788,14.41184853,215.8,215.63,4.6375]
[1738631070988,14.41184853,215.8,215.65,20.0]
[1738631071189,15.41184853,215.8,215.61,4.7008]
[1738631071596,13.41184853,215.78,215.62,20.0]
[1738631072183,13.41184853,215.78,215.62,13.41184853]
[1738631072696,13.41184853,215.78,215.64,20.0]
[1738631072895,13.41184853,215.78,215.66,20.0]
[1738631073306,1.0,215.77,215.63,13.41184853]
[1738631073696,20.0,215.75,215.61,0.063]
[1738631074025,1.0,215.77,215.61,0.063]
[1738631074026,13.41184853,215.72,215.61,0.063]
[1738631074329,20.0,215.69,215.61,0.063]
[1738631076288,1.6501,215.68,215.61,0.063]
[1738631076516,13.41184853,215.67,215.61,0.063]
[1738631077312,1.0,215.66,215.61,0.063]
[1738631080538,1.6501,215.68,215.61,0.063]
[1738631082336,13.41184853,215.67,215.61,0.063]
[1738631082538,14.41184853,215.67,215.61,0.063]
[1738631083950,1.6501,215.68,215.61,0.063]
[1738631087058,6.4348,215.73,215.61,0.063]
[1738631087551,20.0,215.7,215.61,0.063]
[1738631088152,6.4348,215.73,215.61,0.063]
[1738631091052,13.41184853,215.72,215.61,0.063]
[1738631091235,20.0,215.69,215.61,0.063]
[1738631092932,1.6471,215.68,215.61,0.063]
[1738631093457,20.0,215.69,215.61,0.063]
[1738631093458,1.0,215.63,215.61,0.063]
[1738631093636,20.0,215.59,215.46,0.03]
[1738631094545,6.4132,215.58,215.46,0.03]
[1738631095177,7.59252674,215.58,215.46,0.03]
[1738631095368,20.0,215.55,215.46,0.03]
[1738631096271,20.0,215.51,215.46,0.03]
[1738631096664,21.0,215.51,215.46,0.03]
[1738631097384,20.0,215.51,215.46,0.03]
[1738631097554,1.6055,215.54,215.46,0.03]
[1738631098179,20.0,215.53,215.46,0.03]
[1738631100291,21.6055,215.54,215.46,0.03]
[1738631100777,1.6055,215.54,215.46,0.03]
[1738631101450,21.6055,215.54,215.46,0.03]
[1738631102509,1.6055,215.54,215.46,0.03]
[1738631104602,21.6055,215.54,215.46,0.03]
[1738631104780,13.41184853,215.53,215.46,0.03]
[1738631105377,20.0,215.5,215.46,0.03]
[1738631106014,6.6054,215.49,215.46,0.03]
[1738631106203,6.6054,215.49,215.41,0.03]
[1738631106204,20.0,215.45,215.41,0.03]
[1738631107602,13.41184853,215.44,215.41,0.03]
[1738631107985,20.0,215.42,215.41,0.03]
[1738631108201,34.41184853,215.42,215.41,0.03]
[1738631108515,40.01724853,215.42,215.41,0.03]
[1738631110119,26.6054,215.42,215.41,0.03]
[1738631110635,8.2413,215.47,215.41,0.03]
[1738631112904,1.6359,215.47,215.41,0.03]
[1738631113117,21.06584853,215.52,215.41,0.03]
[1738631113734,7.654,215.52,215.41,0.03]
[1738631114340,0.03,215.54,215.41,13.44184853]
[1738631115327,20.0,215.53,215.41,0.03]
[1738631115820,0.03,215.54,215.41,13.44184853]
[1738631116237,0.03,215.54,215.41,0.03]
[1738631116445,13.41184853,215.52,215.41,0.03]
[1738631117040,20.0,215.49,215.41,0.03]
[1738631119546,13.41184853,215.48,215.41,0.03]
[1738631119930,1.0,215.51,215.41,0.03]
[1738631120651,20.0,215.52,215.41,0.03]
[1738631120947,0.03,215.54,215.41,0.03]
[1738631121153,0.03,215.54,215.43,13.41184853]
[1738631121328,0.03,215.54,215.42,1.5505]
[1738631122030,0.03,215.54,215.42,6.1924]
[1738631122449,0.03,215.54,215.43,13.41184853]
[1738631122835,0.03,215.54,215.47,20.06164853]
[1738631123024,0.03,215.54,215.5,20.0]
[1738631123225,0.03,215.54,215.51,13.41184853]
[1738631123654,0.03,215.54,215.53,33.41184853]
[1738631124020,3.6,215.7,215.57,20.0]
[1738631124220,6.1985,215.73,215.58,13.41184853]
[1738631124541,0.03,215.76,215.62,13.41184853]
[1738631125047,20.03,215.76,215.62,13.41184853]
[1738631125256,0.03,215.76,215.62,13.41184853]
[1738631125431,0.03,215.76,215.66,13.41184853]
[1738631125831,0.03,215.76,215.67,4.6367]
[1738631126061,0.03,215.76,215.68,13.41184853]
[1738631126431,0.03,215.76,215.67,4.6367]
[1738631126845,0.03,215.76,215.68,18.04824853]
[1738631128532,0.03,215.76,215.71,20.0]
[1738631128746,0.03,215.76,215.71,24.6357]
[1738631129363,0.03,215.76,215.75,20.0]
[1738631130052,0.03,215.76,215.75,33.41184853]
[1738631130368,0.03,215.82,215.79,20.0]
[1738631130670,0.03,215.82,215.8,18.04574853]
[1738631131823,0.03,215.82,215.77,0.69483489]
[1738631132028,0.03,215.82,215.76,81.8]
[1738631132475,0.03,215.82,215.77,13.41184853]
[1738631132771,0.03,215.82,215.8,20.0]
[1738631133745,0.03,215.82,215.76,81.8]
[1738631134986,0.03,215.82,215.77,13.41184853]
[1738631135779,0.03,215.82,215.79,13.41184853]
[1738631136472,0.03,215.82,215.81,20.0]
[1738631136972,0.03,215.82,215.81,24.6337]
[1738631137140,0.03,215.82,215.81,38.04554853]
[1738631137482,0.03,215.82,215.76,81.8]
[1738631137657,0.03,215.82,215.8,20.0]
[1738631138179,0.03,215.82,215.76,81.8]
[1738631141984,0.03,215.82,215.75,20.0]
[1738631142588,0.03,215.82,215.76,33.41184853]
[1738631143681,0.03,215.82,215.77,4.6345]
[1738631144394,0.03,215.82,215.81,20.0]
[1738631144693,0.03,215.82,215.81,33.41184853]
[1738631145562,0.03,215.82,215.77,81.8]
[1738631145999,0.03,215.82,215.78,13.41184853]
[1738631146667,0.03,215.82,215.81,20.0]
[1738631146879,0.03,215.82,215.81,24.6337]
[1738631147598,0.03,215.82,215.81,20.0]
[1738631148195,0.03,215.82,215.78,13.41184853]
[1738631148803,0.03,215.82,215.78,18.04614853]
[1738631149286,0.03,215.82,215.77,81.8]
[1738631150671,6.1727,215.82,215.76,0.063]
[1738631153085,13.41184853,215.81,215.76,0.063]
[1738631156618,20.0,215.78,215.76,0.063]
[1738631157601,35.01924853,215.77,215.76,0.0001]
[1738631157799,13.41184853,215.76,215.58,4.6385]
[1738631157994,6.0965,215.72,215.56,1.6128]
[1738631158500,6.0965,215.72,215.59,20.0]
[1738631158706,7.25726908,215.72,215.59,20.0]
[1738631158899,6.0965,215.72,215.59,20.0]
[1738631159294,6.0965,215.72,215.56,6.2516]
[1738631159824,6.0965,215.72,215.59,20.063]
[1738631160413,6.0965,215.72,215.59,0.063]
[1738631160621,6.0965,215.72,215.59,13.47484853]
[1738631161016,1.6074,215.77,215.67,20.0]
[1738631161923,1.6074,215.77,215.64,13.41184853]
[1738631161924,1.6074,215.77,215.64,18.04894853]
[1738631162321,20.0,215.76,215.62,20.0]
[1738631162693,13.41184853,215.75,215.6,18.05004853]
[1738631162899,13.41184853,215.75,215.59,20.063]
[1738631163135,20.0,215.68,215.59,0.063]
[1738631163334,20.0,215.63,215.59,0.063]
[1738631164432,33.41184853,215.6,215.59,0.063]
[1738631164935,20.0,215.56,215.54,0.063]
[1738631165134,7.963,215.55,215.54,0.063]
[1738631165913,21.37484853,215.55,215.54,0.063]
[1738631167038,7.963,215.55,215.54,0.063]
[1738631167231,21.37484853,215.55,215.54,0.063]
[1738631169338,70.87484853,215.55,215.54,0.063]
[1738631171228,21.37484853,215.55,215.54,0.063]
[1738631172020,21.37484853,215.55,215.41,20.03]
[1738631172021,20.0,215.51,215.41,0.03]
[1738631172225,33.41184853,215.47,215.41,0.03]
[1738631173346,34.41184853,215.47,215.41,0.03]
[1738631173552,33.41184853,215.47,215.41,0.03]
[1738631174145,49.5,215.54,215.41,0.03]
[1738631174444,7.963,215.55,215.41,6.084]
[1738631175252,13.41184853,215.54,215.41,6.084]
[1738631175452,8.1938,215.61,215.44,20.0]
[1738631175835,20.0,215.58,215.45,13.41184853]
[1738631176356,20.0,215.58,215.41,7.7105]
[1738631176357,20.0,215.54,215.41,7.7105]
[1738631176936,13.41184853,215.53,215.41,0.03]
[1738631177447,20.0,215.5,215.41,0.03]
[1738631178253,20.0,215.46,215.41,0.03]
[1738631178656,49.5,215.51,215.41,0.03]
[1738631178826,49.5,215.54,215.41,0.03]
[1738631179026,13.41184853,215.53,215.41,0.03]
[1738631179339,13.41184853,215.49,215.41,0.03]
[1738631179540,13.41184853,215.45,215.41,0.03]
[1738631179936,20.0,215.44,215.41,0.03]
[1738631180136,13.41184853,215.43,215.41,0.03]
[1738631181957,20.0,215.42,215.41,0.03]
[1738631182141,33.41184853,215.42,215.41,0.03]
[1738631183062,1.0,215.47,215.41,0.03]
[1738631183561,20.0,215.43,215.41,0.03]
[1738631184764,49.5,215.47,215.41,0.03]
[1738631187566,20.0,215.47,215.41,0.03]
[1738631188573,50.68694446,215.52,215.41,0.03]
[1738631188750,3.6,215.54,215.41,0.03]
[1738631189250,49.5,215.55,215.41,0.03]
[1738631189473,20.0,215.51,215.41,0.03]
[1738631189874,20.0,215.47,215.41,0.03]
[1738631192355,13.41184853,215.46,215.41,0.03]
[1738631192565,20.0,215.43,215.41,0.03]
[1738631192875,13.41184853,215.42,215.41,0.03]
[1738631193377,20.0,215.38,215.32,0.063]
[1738631193581,33.41184853,215.36,215.32,0.063]
[1738631194447,20.0,215.36,215.32,0.063]
[1738631194651,49.5,215.39,215.32,0.063]
[1738631195271,33.41184853,215.36,215.32,0.063]
[1738631196292,34.41184853,215.36,215.32,0.063]
[1738631198071,13.41184853,215.36,215.32,0.063]
[1738631198669,20.0,215.33,215.32,0.063]
[1738631198877,33.41184853,215.33,215.32,0.063]
[1738631201801,3.6,215.36,215.32,0.063]
[1738631202468,56.16684684,215.43,215.32,0.063]
[1738631202669,3.6,215.42,215.32,0.063]
[1738631202872,20.0,215.36,215.32,0.063]
[1738631203173,13.41184853,215.41,215.32,0.063]
[1738631203580,13.41184853,215.37,215.32,0.063]
[1738631204273,20.0,215.34,215.32,0.063]
[1738631204686,20.0,215.37,215.32,0.063]
[1738631204883,3.6,215.42,215.32,0.063]
[1738631205393,6.66684684,215.43,215.32,0.063]
[1738631205574,1.13445519,215.48,215.32,0.063]
[1738631205776,53.1,215.48,215.33,6.5152]
[1738631205977,3.6,215.48,215.33,6.5152]
[1738631206181,33.41184853,215.47,215.33,6.5152]
[1738631206473,0.03,215.43,215.33,6.5152]
[1738631208405,20.0,215.42,215.33,6.5152]
[1738631210478,20.0,215.38,215.32,0.063]
[1738631211306,13.41184853,215.33,215.24,0.063]
[1738631211506,20.0,215.3,215.24,0.063]
[1738631215530,13.41184853,215.33,215.24,0.063]
[1738631216809,20.0,215.3,215.24,0.063]
[1738631218818,50.63215553,215.37,215.24,0.063]
[1738631218819,49.5,215.37,215.24,0.063]
[1738631219214,20.0,215.33,215.24,0.063]
[1738631219539,20.0,215.29,215.24,0.063]
[1738631220203,13.41184853,215.28,215.24,0.063]
[1738631220619,33.41184853,215.25,215.19,0.063]
[1738631220803,13.41184853,215.24,215.19,0.063]
[1738631221411,20.0,215.21,215.19,0.063]
[1738631222238,3.6,215.3,215.19,0.063]
[1738631222534,20.0,215.24,215.19,0.063]
[1738631223408,13.41184853,215.23,215.19,0.063]
[1738631224733,20.0,215.28,215.19,0.063]
[1738631225235,3.6,215.3,215.19,0.063]
[1738631225236,20.0,215.24,215.19,0.063]
[1738631225437,3.6,215.3,215.19,0.063]
[1738631225641,20.0,215.26,215.19,0.063]
[1738631226008,13.41184853,215.29,215.19,0.063]
[1738631226207,3.6,215.3,215.19,0.063]
[1738631227321,1.14651518,215.36,215.21,13.41184853]
[1738631227543,20.0,215.34,215.19,20.063]
[1738631228036,20.0,215.34,215.2,13.41184853]
[1738631228206,14.54617908,215.37,215.19,0.063]
[1738631228611,20.0,215.34,215.19,0.063]
[1738631228839,20.0,215.34,215.2,20.0]
[1738631229161,13.41184853,215.33,215.19,0.063]
[1738631229439,13.41184853,215.29,215.19,0.063]
[1738631230106,49.5,215.35,215.19,0.063]
[1738631230307,20.0,215.32,215.19,0.063]
[1738631230535,20.0,215.28,215.19,0.063]
[1738631231941,83.5,215.41,215.19,0.063]
[1738631232137,3.62,215.36,215.19,0.063]
[1738631232337,33.41184853,215.35,215.19,0.063]
[1738631233124,13.41184853,215.35,215.19,18.12184853]
[1738631233324,33.41184853,215.35,215.19,18.12184853]
[1738631233530,20.0,215.32,215.19,18.12184853]
[1738631234418,1.1814757,215.37,215.19,18.12184853]
[1738631234621,13.41184853,215.36,215.22,4.6463]
[1738631234820,13.41184853,215.37,215.22,4.6463]
[1738631235020,20.0,215.34,215.22,4.6463]
[1738631235423,14.55396395,215.37,215.23,20.0]
[1738631235653,1.14211542,215.37,215.23,20.0]
[1738631235814,13.41184853,215.4,215.23,20.0]
[1738631236019,20.0,215.38,215.23,20.0]
[1738631236428,20.0,215.38,215.24,4.6459]
[1738631237761,20.0,215.34,215.2,7.7815]
[1738631238251,20.0,215.3,215.2,7.7815]
[1738631240547,0.063,215.38,215.21,13.41184853]
[1738631241051,20.0,215.37,215.2,7.7815]
[1738631241280,20.0,215.33,215.2,7.7815]
[1738631242024,13.41184853,215.32,215.2,7.7815]
[1738631242245,20.0,215.29,215.2,7.7815]
[1738631243328,1.0,215.37,215.2,7.7815]
[1738631243548,13.41184853,215.34,215.2,7.7815]
[1738631244161,20.0,215.31,215.2,7.7815]
[1738631244733,20.0,215.33,215.2,7.7815]
[1738631246294,13.41184853,215.32,215.2,7.7815]
[1738631246691,20.0,215.29,215.2,7.7815]
[1738631247462,20.0,215.29,215.19,0.063]
[1738631247463,20.0,215.25,215.19,0.063]
[1738631248605,13.41184853,215.28,215.19,0.063]
[1738631249998,49.5,215.33,215.19,0.063]
[1738631250172,3.6,215.33,215.19,0.063]
[1738631250497,20.0,215.29,215.19,0.063]
[1738631250897,3.6,215.35,215.19,0.063]
[1738631251403,49.5,215.39,215.19,0.063]
[1738631251404,0.063,215.38,215.2,7.8986]
[1738631251566,0.063,215.38,215.23,20.0]
[1738631251768,13.41184853,215.37,215.23,20.0]
[1738631251993,13.41184853,215.37,215.23,24.646]
[1738631252778,0.063,215.38,215.23,24.646]
[1738631252974,0.063,215.38,215.25,20.0]
[1738631253190,0.063,215.38,215.26,7.5965]
[1738631253574,0.063,215.38,215.27,13.41184853]
[1738631253994,0.063,215.38,215.27,18.05694853]
[1738631254905,0.063,215.38,215.3,20.0]
[1738631255478,0.063,215.38,215.31,33.41184853]
[1738631255676,0.063,215.38,215.33,6.166]
[1738631262198,0.063,215.38,215.32,1.5283]
[1738631263217,13.47484853,215.38,215.28,6.6646]
[1738631263843,13.47484853,215.38,215.23,0.03]
[1738631263844,13.47484853,215.38,215.24,20.0]
[1738631267618,0.063,215.38,215.27,20.0]
[1738631269018,0.063,215.38,215.25,4.6457]
[1738631269805,0.063,215.38,215.24,101.8]
[1738631270611,20.0,215.37,215.24,101.8]
[1738631271925,20.0,215.37,215.24,106.4459]
[1738631272228,0.063,215.38,215.25,15.10845685]
[1738631272722,0.063,215.38,215.28,20.0]
[1738631272928,0.063,215.38,215.29,8.1867]
[1738631277037,0.063,215.38,215.29,12.8314]
[1738631277333,0.063,215.38,215.3,14.41184853]
[1738631277516,0.063,215.38,215.31,4.6444]
[1738631280945,0.063,215.38,215.29,89.9867]
[1738631282044,0.063,215.38,215.29,81.8]
[1738631282211,20.063,215.38,215.29,81.8]
[1738631290237,20.063,215.38,215.24,0.03]
[1738631290238,1.5383,215.36,215.24,0.03]
[1738631290653,1.5383,215.36,215.24,13.44184853]
[1738631290838,0.063,215.38,215.27,20.0]
[1738631291041,0.063,215.38,215.28,13.41184853]
[1738631291337,0.063,215.38,215.29,0.69639704]
[1738631292361,0.063,215.38,215.31,4.6444]
[1738631292545,0.063,215.38,215.32,13.41184853]
[1738631293462,0.063,215.38,215.32,20.0]
[1738631293645,0.063,215.38,215.3,4.6446]
[1738631293862,0.063,215.38,215.29,81.8]
[1738631294757,0.063,215.38,215.29,86.4448]
[1738631295056,0.063,215.38,215.3,15.10830604]
[1738631295449,0.063,215.38,215.33,1.0]
[1738631295765,0.063,215.38,215.34,0.6962422]
[1738631296444,0.063,215.38,215.35,13.41184853]
[1738631296644,0.063,215.38,215.37,33.41184853]
[1738631296869,0.03,215.43,215.39,13.41184853]
[1738631297167,0.03,215.43,215.41,13.41184853]
[1738631297367,0.03,215.43,215.42,14.10783]
[1738631298359,0.03,215.43,215.42,101.54983]
[1738631298949,0.03,215.43,215.42,100.54983]
[1738631299152,0.03,215.43,215.42,101.54983]
[1738631300573,0.03,215.43,215.42,99.85384853]
[1738631302269,0.03,215.43,215.42,81.8]
[1738631303663,0.03,215.43,215.42,95.21184853]
[1738631305180,0.03,215.43,215.42,95.90777339]
[1738631306768,0.03,215.43,215.42,96.03326339]
[1738631306964,0.063,215.51,215.46,21.0]
[1738631307273,0.063,215.51,215.47,14.10764626]
[1738631307689,0.063,215.51,215.5,34.41184853]
[1738631307892,0.063,215.51,215.5,116.90750648]
[1738631308193,0.063,215.51,215.5,115.21184853]
[1738631309088,0.063,215.51,215.5,119.85214853]
[1738631309894,0.063,215.51,215.5,101.8]
[1738631310193,0.063,215.51,215.45,87.4412]
[1738631310486,0.063,215.51,215.49,13.41184853]
[1738631310787,0.063,215.51,215.48,20.0]
[1738631311166,0.063,215.51,215.5,4.6403]